[Event "Titled Tuesday Blitz January 10 Early 2023"]
[White "Kaiyrbekov, Rustam"]
[Black "Blokhin, Sofia"]
[WhiteFideId "13702424"]
[BlackFideId "4508190"]
[WhiteElo "2295"]
[BlackElo "2062"]
[Result "0-1"]
[Round "05"]
[TimeControl "180+2"]
[Date "2023.01.10"]
[WhiteClock "0:00:19"]
[BlackClock "0:00:06"]

1. c4 {[%clk 0:03:00]}  c5 {[%clk 0:02:59]} 2. Nf3 {[%clk 0:03:00]}  Nc6 {[%clk 0:02:56]} 3. d4 {[%clk 0:03:00]}  cxd4 {[%clk 0:02:53]} 4. Nxd4 {[%clk 0:03:01]}  Nf6 {[%clk 0:02:50]} 5. Nc3 {[%clk 0:02:55]}  d6 {[%clk 0:02:46]} 6. g3 {[%clk 0:02:54]}  e5 {[%clk 0:02:40]} 7. Nc2 {[%clk 0:02:51]}  Be6 {[%clk 0:02:38]} 8. Ne3 {[%clk 0:02:50]}  Be7 {[%clk 0:02:32]} 9. Ned5 {[%clk 0:02:48]}  Bxd5 {[%clk 0:02:22]} 10. cxd5 {[%clk 0:02:46]}  Nd4 {[%clk 0:02:08]} 11. e3 {[%clk 0:02:34]}  Nf5 {[%clk 0:02:02]} 12. Bb5+ {[%clk 0:02:34]}  Nd7 {[%clk 0:01:48]} 13. Qa4 {[%clk 0:02:26]}  a6 {[%clk 0:01:44]} 14. Bxd7+ {[%clk 0:02:26]}  Qxd7 {[%clk 0:01:44]} 15. Qxd7+ {[%clk 0:02:27]}  Kxd7 {[%clk 0:01:45]} 16. a4 {[%clk 0:02:20]}  Bd8 {[%clk 0:01:04]} 17. b4 {[%clk 0:02:10]}  Bb6 {[%clk 0:00:59]} 18. O-O {[%clk 0:02:00]}  h5 {[%clk 0:00:54]} 19. h4 {[%clk 0:01:59]}  Rac8 {[%clk 0:00:38]} 20. Bd2 {[%clk 0:01:55]}  Rc4 {[%clk 0:00:31]} 21. Rfb1 {[%clk 0:01:47]}  Rhc8 {[%clk 0:00:25]} 22. b5 {[%clk 0:01:25]}  a5 {[%clk 0:00:18]} 23. Rc1 {[%clk 0:01:20]}  Ne7 {[%clk 0:00:16]} 24. Ne2 {[%clk 0:01:19]}  Nxd5 {[%clk 0:00:15]} 25. Rxc4 {[%clk 0:01:07]}  Rxc4 {[%clk 0:00:16]} 26. Kg2 {[%clk 0:01:04]}  Nb4 {[%clk 0:00:16]} 27. Nc3 {[%clk 0:01:00]}  d5 {[%clk 0:00:13]} 28. Rd1 {[%clk 0:00:58]}  Ke6 {[%clk 0:00:13]} 29. f4 {[%clk 0:00:50]}  d4 {[%clk 0:00:12]} 30. exd4 {[%clk 0:00:50]}  exd4 {[%clk 0:00:12]} 31. Re1+ {[%clk 0:00:50]}  Kd7 {[%clk 0:00:11]} 32. Ne4 {[%clk 0:00:48]}  Rc2 {[%clk 0:00:11]} 33. Kf3 {[%clk 0:00:46]}  f5 {[%clk 0:00:10]} 34. Bxb4 {[%clk 0:00:41]}  fxe4+ {[%clk 0:00:09]} 35. Kxe4 {[%clk 0:00:36]}  axb4 {[%clk 0:00:10]} 36. Kd3 {[%clk 0:00:35]}  Rc3+ {[%clk 0:00:10]} 37. Kd2 {[%clk 0:00:35]}  b3 {[%clk 0:00:11]} 38. Rb1 {[%clk 0:00:33]}  Rc2+ {[%clk 0:00:11]} 39. Kd3 {[%clk 0:00:33]}  Rc3+ {[%clk 0:00:12]} 40. Kd2 {[%clk 0:00:33]}  Rxg3 {[%clk 0:00:12]} 41. Ra1 {[%clk 0:00:31]}  Ba5+ {[%clk 0:00:11]} 42. Ke2 {[%clk 0:00:25]}  Rg2+ {[%clk 0:00:12]} 43. Kf3 {[%clk 0:00:24]}  Rc2 {[%clk 0:00:12]} 44. Ke4 {[%clk 0:00:24]}  Bc3 {[%clk 0:00:11]} 45. Rb1 {[%clk 0:00:23]}  b2 {[%clk 0:00:12]} 46. Kd3 {[%clk 0:00:23]}  Rc1 {[%clk 0:00:12]} 47. Rxb2 {[%clk 0:00:14]}  Bxb2 {[%clk 0:00:11]} 48. a5 {[%clk 0:00:15]}  Ra1 {[%clk 0:00:11]} 49. a6 {[%clk 0:00:16]}  bxa6 {[%clk 0:00:11]} 50. b6 {[%clk 0:00:16]}  Kc6 {[%clk 0:00:10]} 51. f5 {[%clk 0:00:17]}  Kxb6 {[%clk 0:00:10]} 52. f6 {[%clk 0:00:18]}  gxf6 {[%clk 0:00:10]} 53. Ke4 {[%clk 0:00:17]}  Re1+ {[%clk 0:00:10]} 54. Kd3 {[%clk 0:00:18]}  Re3+ {[%clk 0:00:10]} 55. Kd2 {[%clk 0:00:19]}  Re4 {[%clk 0:00:10]} 56. Kd3 {[%clk 0:00:20]}  Rxh4 {[%clk 0:00:11]} 57. Kd2 {[%clk 0:00:20]}  Rf4 {[%clk 0:00:10]} 58. Kd3 {[%clk 0:00:21]}  h4 {[%clk 0:00:11]} 59. Kc4 {[%clk 0:00:21]}  h3 {[%clk 0:00:11]} 60. Kb3 {[%clk 0:00:22]}  h2 {[%clk 0:00:11]} 61. Ka2 {[%clk 0:00:20]}  h1=Q {[%clk 0:00:10]} 62. Kb3 {[%clk 0:00:20]}  Qf3+ {[%clk 0:00:08]} 63. Ka4 {[%clk 0:00:19]}  d3+ {[%clk 0:00:07]} 64. Kb3 {[%clk 0:00:20]}  d2+ {[%clk 0:00:07]} 65. Ka2 {[%clk 0:00:21]}  d1=Q {[%clk 0:00:06]} 66. Kxb2 {[%clk 0:00:19]}  Qfb3# {[%clk 0:00:06]} 0-1


[Site "https://www.chess.com"]

[Event "Titled Tuesday Blitz January 10 Early 2023"]
[White "Thiel, Thomas"]
[Black "Muzzi, Eduardo"]
[WhiteFideId "4615964"]
[BlackFideId "3001253"]
[WhiteElo "2234"]
[BlackElo "1917"]
[Result "1-0"]
[Round "05"]
[TimeControl "180+2"]
[Date "2023.01.10"]
[WhiteClock "0:00:09"]
[BlackClock "0:00:01"]

1. e4 {[%clk 0:03:00]}  e6 {[%clk 0:02:58]} 2. d4 {[%clk 0:03:00]}  d5 {[%clk 0:02:58]} 3. Nc3 {[%clk 0:03:00]}  Bb4 {[%clk 0:02:58]} 4. e5 {[%clk 0:02:58]}  c5 {[%clk 0:02:57]} 5. a3 {[%clk 0:02:58]}  Bxc3+ {[%clk 0:02:57]} 6. bxc3 {[%clk 0:02:59]}  Qc7 {[%clk 0:02:57]} 7. Qg4 {[%clk 0:02:48]}  f5 {[%clk 0:02:55]} 8. Qg3 {[%clk 0:02:47]}  cxd4 {[%clk 0:02:55]} 9. cxd4 {[%clk 0:02:44]}  Ne7 {[%clk 0:02:55]} 10. Bd3 {[%clk 0:02:37]}  Qc3+ {[%clk 0:02:54]} 11. Kd1 {[%clk 0:02:35]}  Qxa1 {[%clk 0:02:53]} 12. Qxg7 {[%clk 0:02:33]}  Rg8 {[%clk 0:02:52]} 13. Qxh7 {[%clk 0:02:33]}  Nbc6 {[%clk 0:02:52]} 14. Ne2 {[%clk 0:02:28]}  Nxd4 {[%clk 0:02:45]} 15. Nf4 {[%clk 0:02:27]}  Bd7 {[%clk 0:02:29]} 16. Nh5 {[%clk 0:02:24]}  Nxc2 {[%clk 0:02:06]} 17. Nf6+ {[%clk 0:02:22]}  Kd8 {[%clk 0:02:04]} 18. Nxg8 {[%clk 0:02:19]}  Kc7 {[%clk 0:01:27]} 19. Nxe7 {[%clk 0:02:13]}  Nxa3 {[%clk 0:01:21]} 20. Nxd5+ {[%clk 0:01:59]}  exd5 {[%clk 0:01:19]} 21. e6 {[%clk 0:01:59]}  Rd8 {[%clk 0:01:12]} 22. exd7 {[%clk 0:01:58]}  Rxd7 {[%clk 0:01:13]} 23. Qxf5 {[%clk 0:01:58]}  Qc3 {[%clk 0:01:02]} 24. Re1 {[%clk 0:01:43]}  Nc4 {[%clk 0:00:58]} 25. h4 {[%clk 0:01:32]}  Qb3+ {[%clk 0:00:27]} 26. Bc2 {[%clk 0:01:31]}  Qc3 {[%clk 0:00:21]} 27. Qd3 {[%clk 0:01:30]}  Qf6 {[%clk 0:00:19]} 28. f4 {[%clk 0:01:22]}  Rg7 {[%clk 0:00:17]} 29. g3 {[%clk 0:01:15]}  Qh6 {[%clk 0:00:07]} 30. Ke2 {[%clk 0:01:11]}  Qh5+ {[%clk 0:00:07]} 31. Kf2 {[%clk 0:01:10]}  Qg4 {[%clk 0:00:05]} 32. Bd1 {[%clk 0:01:02]}  Qh3 {[%clk 0:00:05]} 33. Qf3 {[%clk 0:00:59]}  Nd6 {[%clk 0:00:03]} 34. Qxd5 {[%clk 0:00:48]}  Nf5 {[%clk 0:00:02]} 35. Qc5+ {[%clk 0:00:38]}  Kd8 {[%clk 0:00:01]} 36. Qf8+ {[%clk 0:00:32]}  Kc7 {[%clk 0:00:01]} 37. Qc5+ {[%clk 0:00:24]}  Kd8 {[%clk 0:00:02]} 38. Re3 {[%clk 0:00:20]}  Qh2+ {[%clk 0:00:01]} 39. Ke1 {[%clk 0:00:18]}  Nxe3 {[%clk 0:00:02]} 40. Bxe3 {[%clk 0:00:16]}  Rxg3 {[%clk 0:00:03]} 41. Bf2 {[%clk 0:00:16]}  Qh1+ {[%clk 0:00:02]} 42. Ke2 {[%clk 0:00:15]}  Qe4+ {[%clk 0:00:02]} 43. Kd2 {[%clk 0:00:11]}  Rd3+ {[%clk 0:00:01]} 44. Kc2 {[%clk 0:00:09]} 1-0


[Site "https://www.chess.com"]

[Event "Titled Tuesday Blitz January 10 Early 2023"]
[White "Dubov, Daniil"]
[Black "Anton Guijarro, David"]
[WhiteFideId "24126055"]
[BlackFideId "2285525"]
[WhiteElo "2708"]
[BlackElo "2690"]
[Result "1-0"]
[Round "06"]
[TimeControl "180+2"]
[Date "2023.01.10"]
[WhiteClock "0:00:18"]
[BlackClock "0:00:04"]

1. d4 {[%clk 0:03:00]}  Nf6 {[%clk 0:02:59]} 2. Nf3 {[%clk 0:03:01]}  d5 {[%clk 0:02:57]} 3. Bg5 {[%clk 0:03:00]}  Nbd7 {[%clk 0:02:50]} 4. Nbd2 {[%clk 0:02:59]}  h6 {[%clk 0:02:50]} 5. Bh4 {[%clk 0:02:59]}  e6 {[%clk 0:02:50]} 6. e3 {[%clk 0:02:59]}  Be7 {[%clk 0:02:49]} 7. Bd3 {[%clk 0:02:59]}  c5 {[%clk 0:02:47]} 8. c3 {[%clk 0:02:59]}  O-O {[%clk 0:02:47]} 9. O-O {[%clk 0:02:58]}  b6 {[%clk 0:02:47]} 10. Ne5 {[%clk 0:02:57]}  Nxe5 {[%clk 0:02:46]} 11. dxe5 {[%clk 0:02:58]}  Nd7 {[%clk 0:02:46]} 12. Bxe7 {[%clk 0:02:58]}  Qxe7 {[%clk 0:02:46]} 13. f4 {[%clk 0:02:59]}  Bb7 {[%clk 0:02:45]} 14. Qg4 {[%clk 0:02:55]}  f5 {[%clk 0:02:44]} 15. exf6 {[%clk 0:02:54]}  Rxf6 {[%clk 0:02:43]} 16. Nf3 {[%clk 0:02:49]}  Raf8 {[%clk 0:02:34]} 17. Rae1 {[%clk 0:02:45]}  a6 {[%clk 0:02:22]} 18. Nh4 {[%clk 0:02:44]}  Qd6 {[%clk 0:02:09]} 19. Ng6 {[%clk 0:02:42]}  R8f7 {[%clk 0:02:08]} 20. Qg3 {[%clk 0:02:38]}  b5 {[%clk 0:02:02]} 21. a3 {[%clk 0:02:36]}  c4 {[%clk 0:01:47]} 22. Bc2 {[%clk 0:02:36]}  a5 {[%clk 0:01:46]} 23. h4 {[%clk 0:02:27]}  b4 {[%clk 0:01:42]} 24. axb4 {[%clk 0:02:28]}  axb4 {[%clk 0:01:42]} 25. h5 {[%clk 0:02:14]}  bxc3 {[%clk 0:01:14]} 26. bxc3 {[%clk 0:02:15]}  Qa3 {[%clk 0:01:14]} 27. Rb1 {[%clk 0:01:56]}  Bc6 {[%clk 0:01:00]} 28. Rfc1 {[%clk 0:01:41]}  Qa7 {[%clk 0:00:15]} 29. Ra1 {[%clk 0:01:34]}  Qc5 {[%clk 0:00:14]} 30. Ra2 {[%clk 0:01:28]}  Nf8 {[%clk 0:00:14]} 31. Ne5 {[%clk 0:01:24]}  Rc7 {[%clk 0:00:13]} 32. Ng4 {[%clk 0:01:22]}  Qe7 {[%clk 0:00:09]} 33. Rca1 {[%clk 0:01:19]}  Be8 {[%clk 0:00:08]} 34. Ra8 {[%clk 0:00:57]}  Bxh5 {[%clk 0:00:08]} 35. Nxf6+ {[%clk 0:00:57]}  Qxf6 {[%clk 0:00:08]} 36. f5 {[%clk 0:00:51]}  Re7 {[%clk 0:00:07]} 37. fxe6 {[%clk 0:00:48]}  Qxe6 {[%clk 0:00:05]} 38. Rf1 {[%clk 0:00:47]}  Rf7 {[%clk 0:00:06]} 39. Rxf7 {[%clk 0:00:46]}  Bxf7 {[%clk 0:00:06]} 40. Qf4 {[%clk 0:00:42]}  Qe7 {[%clk 0:00:05]} 41. Ra1 {[%clk 0:00:34]}  Bg6 {[%clk 0:00:04]} 42. Bxg6 {[%clk 0:00:30]}  Nxg6 {[%clk 0:00:05]} 43. Qd4 {[%clk 0:00:30]}  Qe6 {[%clk 0:00:05]} 44. Ra7 {[%clk 0:00:27]}  Ne5 {[%clk 0:00:05]} 45. Ra5 {[%clk 0:00:26]}  Kh7 {[%clk 0:00:04]} 46. Qxd5 {[%clk 0:00:24]}  Qxd5 {[%clk 0:00:02]} 47. Rxd5 {[%clk 0:00:25]}  Ng4 {[%clk 0:00:02]} 48. e4 {[%clk 0:00:24]}  Kg6 {[%clk 0:00:03]} 49. Rc5 {[%clk 0:00:24]}  Ne3 {[%clk 0:00:03]} 50. Kf2 {[%clk 0:00:20]}  Nd1+ {[%clk 0:00:03]} 51. Kf3 {[%clk 0:00:20]}  Nxc3 {[%clk 0:00:04]} 52. Rxc4 {[%clk 0:00:21]}  Nb5 {[%clk 0:00:04]} 53. Ke3 {[%clk 0:00:21]}  Kf6 {[%clk 0:00:04]} 54. Rc5 {[%clk 0:00:21]}  Na7 {[%clk 0:00:03]} 55. Kd4 {[%clk 0:00:20]}  h5 {[%clk 0:00:04]} 56. Kd5 {[%clk 0:00:19]}  g5 {[%clk 0:00:04]} 57. Kd6 {[%clk 0:00:19]}  h4 {[%clk 0:00:04]} 58. e5+ {[%clk 0:00:17]}  Kg6 {[%clk 0:00:04]} 59. e6 {[%clk 0:00:17]}  g4 {[%clk 0:00:04]} 60. e7 {[%clk 0:00:18]} 1-0


[Site "https://www.chess.com"]

[Event "Titled Tuesday Blitz January 10 Early 2023"]
[White "Duda, Jan-Krzysztof"]
[Black "Chigaev, Maksim"]
[WhiteFideId "1170546"]
[BlackFideId "4108116"]
[WhiteElo "2724"]
[BlackElo "2628"]
[Result "0-1"]
[Round "06"]
[TimeControl "180+2"]
[Date "2023.01.10"]
[WhiteClock "0:00:07"]
[BlackClock "0:00:34"]

1. d4 {[%clk 0:03:00]}  Nf6 {[%clk 0:03:00]} 2. c4 {[%clk 0:03:01]}  g6 {[%clk 0:03:00]} 3. Nc3 {[%clk 0:03:02]}  Bg7 {[%clk 0:03:01]} 4. e4 {[%clk 0:03:03]}  O-O {[%clk 0:03:02]} 5. f3 {[%clk 0:03:02]}  d6 {[%clk 0:03:02]} 6. Be3 {[%clk 0:03:03]}  a6 {[%clk 0:02:58]} 7. Qd2 {[%clk 0:03:02]}  Nbd7 {[%clk 0:02:58]} 8. Nge2 {[%clk 0:02:53]}  b5 {[%clk 0:02:58]} 9. cxb5 {[%clk 0:02:39]}  axb5 {[%clk 0:02:59]} 10. Nxb5 {[%clk 0:02:39]}  c6 {[%clk 0:03:00]} 11. Nbc3 {[%clk 0:02:36]}  e5 {[%clk 0:03:00]} 12. Rc1 {[%clk 0:02:19]}  d5 {[%clk 0:02:47]} 13. exd5 {[%clk 0:02:18]}  Nxd5 {[%clk 0:02:47]} 14. Nxd5 {[%clk 0:02:16]}  cxd5 {[%clk 0:02:48]} 15. b3 {[%clk 0:01:50]}  Re8 {[%clk 0:02:41]} 16. dxe5 {[%clk 0:01:50]}  Nxe5 {[%clk 0:02:40]} 17. Kf2 {[%clk 0:01:50]}  d4 {[%clk 0:02:25]} 18. Bxd4 {[%clk 0:01:07]}  Rxa2 {[%clk 0:02:04]} 19. Rc2 {[%clk 0:00:46]}  Ng4+ {[%clk 0:01:42]} 20. Ke1 {[%clk 0:00:43]}  Rxc2 {[%clk 0:01:36]} 21. Qxc2 {[%clk 0:00:44]}  Bxd4 {[%clk 0:01:29]} 22. fxg4 {[%clk 0:00:44]}  Qa5+ {[%clk 0:01:22]} 23. Kd1 {[%clk 0:00:43]}  Bxg4 {[%clk 0:01:19]} 24. Qc6 {[%clk 0:00:11]}  Qa1+ {[%clk 0:01:05]} 25. Kd2 {[%clk 0:00:07]}  Be3+ {[%clk 0:01:01]} 26. Kd3 {[%clk 0:00:07]}  Bf5+ {[%clk 0:00:56]} 27. Kc4 {[%clk 0:00:06]}  Rc8 {[%clk 0:00:56]} 28. Qxc8+ {[%clk 0:00:05]}  Bxc8 {[%clk 0:00:56]} 29. b4 {[%clk 0:00:06]}  Be6+ {[%clk 0:00:51]} 30. Kb5 {[%clk 0:00:05]}  Qe5+ {[%clk 0:00:50]} 31. Ka4 {[%clk 0:00:05]}  Bc4 {[%clk 0:00:48]} 32. Nd4 {[%clk 0:00:03]}  Qxd4 {[%clk 0:00:47]} 33. Bxc4 {[%clk 0:00:03]}  Qxc4 {[%clk 0:00:47]} 34. Re1 {[%clk 0:00:02]}  Bd2 {[%clk 0:00:45]} 35. Re8+ {[%clk 0:00:03]}  Kg7 {[%clk 0:00:45]} 36. Rb8 {[%clk 0:00:03]}  h5 {[%clk 0:00:33]} 37. h3 {[%clk 0:00:03]}  h4 {[%clk 0:00:33]} 38. Rb6 {[%clk 0:00:03]}  Bxb4 {[%clk 0:00:32]} 39. Rxb4 {[%clk 0:00:03]}  Qa2+ {[%clk 0:00:28]} 40. Kb5 {[%clk 0:00:03]}  Qxg2 {[%clk 0:00:29]} 41. Rb3 {[%clk 0:00:03]}  Qd5+ {[%clk 0:00:29]} 42. Kb4 {[%clk 0:00:03]}  Qxb3+ {[%clk 0:00:29]} 43. Kxb3 {[%clk 0:00:04]}  Kf6 {[%clk 0:00:30]} 44. Kc3 {[%clk 0:00:05]}  Kf5 {[%clk 0:00:30]} 45. Kd4 {[%clk 0:00:06]}  Kf4 {[%clk 0:00:31]} 46. Kd5 {[%clk 0:00:05]}  f5 {[%clk 0:00:32]} 47. Ke6 {[%clk 0:00:06]}  g5 {[%clk 0:00:32]} 48. Kf6 {[%clk 0:00:06]}  g4 {[%clk 0:00:33]} 49. hxg4 {[%clk 0:00:07]}  fxg4 {[%clk 0:00:34]} 0-1


[Site "https://www.chess.com"]

[Event "Titled Tuesday Blitz January 10 Early 2023"]
[White "Nakamura, Hikaru"]
[Black "Puranik, Abhimanyu"]
[WhiteFideId "2016192"]
[BlackFideId "5061245"]
[WhiteElo "2775"]
[BlackElo "2613"]
[Result "1-0"]
[Round "06"]
[TimeControl "180+2"]
[Date "2023.01.10"]
[WhiteClock "0:00:17"]
[BlackClock "0:00:03"]

1. Nf3 {[%clk 0:03:00]}  Nf6 {[%clk 0:03:00]} 2. b3 {[%clk 0:02:53]}  g6 {[%clk 0:02:54]} 3. Bb2 {[%clk 0:02:51]}  Bg7 {[%clk 0:02:54]} 4. d4 {[%clk 0:02:51]}  O-O {[%clk 0:02:54]} 5. e3 {[%clk 0:02:51]}  b6 {[%clk 0:02:53]} 6. Be2 {[%clk 0:02:51]}  Bb7 {[%clk 0:02:53]} 7. O-O {[%clk 0:02:52]}  d5 {[%clk 0:02:51]} 8. c4 {[%clk 0:02:51]}  e6 {[%clk 0:02:48]} 9. a4 {[%clk 0:02:41]}  Nbd7 {[%clk 0:02:44]} 10. a5 {[%clk 0:02:41]}  bxa5 {[%clk 0:02:45]} 11. c5 {[%clk 0:02:41]}  Ne4 {[%clk 0:02:30]} 12. Qc2 {[%clk 0:02:40]}  Bc6 {[%clk 0:02:18]} 13. Rxa5 {[%clk 0:02:36]}  Qb8 {[%clk 0:02:15]} 14. Nc3 {[%clk 0:02:16]}  f5 {[%clk 0:02:06]} 15. Rfa1 {[%clk 0:02:08]}  Bh6 {[%clk 0:01:40]} 16. Ra6 {[%clk 0:01:58]}  Nxc3 {[%clk 0:01:32]} 17. Bxc3 {[%clk 0:01:52]}  Qb7 {[%clk 0:01:29]} 18. Rxc6 {[%clk 0:01:49]}  Qxc6 {[%clk 0:01:26]} 19. Ra6 {[%clk 0:01:49]}  Nb6 {[%clk 0:01:23]} 20. Ne5 {[%clk 0:01:49]}  Qb7 {[%clk 0:01:17]} 21. cxb6 {[%clk 0:01:15]}  axb6 {[%clk 0:01:17]} 22. Rxa8 {[%clk 0:01:16]}  Rxa8 {[%clk 0:01:15]} 23. g3 {[%clk 0:01:14]}  Bg7 {[%clk 0:01:14]} 24. Nd3 {[%clk 0:01:11]}  Qa7 {[%clk 0:00:58]} 25. Bb2 {[%clk 0:01:09]}  c5 {[%clk 0:00:49]} 26. dxc5 {[%clk 0:00:57]}  Bxb2 {[%clk 0:00:42]} 27. Qxb2 {[%clk 0:00:49]}  bxc5 {[%clk 0:00:42]} 28. Kg2 {[%clk 0:00:49]}  Qb6 {[%clk 0:00:34]} 29. Qe5 {[%clk 0:00:47]}  Kf7 {[%clk 0:00:28]} 30. h4 {[%clk 0:00:41]}  Rc8 {[%clk 0:00:24]} 31. Qc3 {[%clk 0:00:38]}  Kg8 {[%clk 0:00:08]} 32. h5 {[%clk 0:00:36]}  Qd6 {[%clk 0:00:08]} 33. Bf3 {[%clk 0:00:18]}  d4 {[%clk 0:00:07]} 34. Qc4 {[%clk 0:00:18]}  dxe3 {[%clk 0:00:06]} 35. fxe3 {[%clk 0:00:19]}  gxh5 {[%clk 0:00:05]} 36. Nf4 {[%clk 0:00:19]}  Kf7 {[%clk 0:00:03]} 37. Nxe6 {[%clk 0:00:17]}  Kf6 {[%clk 0:00:03]} 38. Nf4 {[%clk 0:00:16]}  Qd2+ {[%clk 0:00:03]} 39. Kh3 {[%clk 0:00:17]}  Rd8 {[%clk 0:00:03]} 40. Qe6+ {[%clk 0:00:17]}  Kg7 {[%clk 0:00:03]} 41. Nxh5+ {[%clk 0:00:17]} 1-0


[Site "https://www.chess.com"]

[Event "Titled Tuesday Blitz January 10 Early 2023"]
[White "Bortnyk, Olexandr"]
[Black "Durarbayli, Vasif"]
[WhiteFideId "14120828"]
[BlackFideId "13402935"]
[WhiteElo "2605"]
[BlackElo "2627"]
[Result "1-0"]
[Round "06"]
[TimeControl "180+2"]
[Date "2023.01.10"]
[WhiteClock "0:00:18"]
[BlackClock "0:00:02"]

1. e4 {[%clk 0:03:00]}  c5 {[%clk 0:02:59]} 2. c3 {[%clk 0:03:00]}  d5 {[%clk 0:02:59]} 3. exd5 {[%clk 0:03:01]}  Qxd5 {[%clk 0:02:59]} 4. d4 {[%clk 0:03:01]}  Nf6 {[%clk 0:03:00]} 5. Be3 {[%clk 0:03:02]}  Ng4 {[%clk 0:02:55]} 6. Nf3 {[%clk 0:02:50]}  cxd4 {[%clk 0:02:44]} 7. cxd4 {[%clk 0:02:46]}  Nxe3 {[%clk 0:02:36]} 8. fxe3 {[%clk 0:02:47]}  e6 {[%clk 0:02:35]} 9. Nc3 {[%clk 0:02:47]}  Qd8 {[%clk 0:02:36]} 10. Bd3 {[%clk 0:02:38]}  Nc6 {[%clk 0:02:36]} 11. O-O {[%clk 0:02:38]}  Be7 {[%clk 0:02:36]} 12. Qc2 {[%clk 0:02:32]}  h6 {[%clk 0:02:31]} 13. a3 {[%clk 0:02:31]}  O-O {[%clk 0:02:30]} 14. Rad1 {[%clk 0:02:31]}  Bd7 {[%clk 0:02:22]} 15. d5 {[%clk 0:02:10]}  exd5 {[%clk 0:02:20]} 16. Nxd5 {[%clk 0:02:11]}  Rc8 {[%clk 0:02:19]} 17. Bh7+ {[%clk 0:02:08]}  Kh8 {[%clk 0:02:19]} 18. Qb1 {[%clk 0:01:49]}  Be6 {[%clk 0:02:03]} 19. Bf5 {[%clk 0:01:47]}  Bc5 {[%clk 0:01:43]} 20. Bxe6 {[%clk 0:01:43]}  fxe6 {[%clk 0:01:41]} 21. Nf4 {[%clk 0:01:42]}  Bxe3+ {[%clk 0:01:38]} 22. Kh1 {[%clk 0:01:42]}  Rxf4 {[%clk 0:01:25]} 23. Rxd8+ {[%clk 0:01:43]}  Rxd8 {[%clk 0:01:26]} 24. Qe1 {[%clk 0:01:42]}  Bd4 {[%clk 0:01:23]} 25. b4 {[%clk 0:01:23]}  e5 {[%clk 0:01:18]} 26. b5 {[%clk 0:01:22]}  Ne7 {[%clk 0:01:15]} 27. g3 {[%clk 0:01:20]}  Rf6 {[%clk 0:01:12]} 28. Nh4 {[%clk 0:01:16]}  Rxf1+ {[%clk 0:01:04]} 29. Qxf1 {[%clk 0:01:17]}  e4 {[%clk 0:01:03]} 30. Qf4 {[%clk 0:01:08]}  Bc5 {[%clk 0:00:20]} 31. Qxe4 {[%clk 0:01:02]}  b6 {[%clk 0:00:20]} 32. a4 {[%clk 0:00:58]}  Rd1+ {[%clk 0:00:21]} 33. Kg2 {[%clk 0:00:58]}  Rd2+ {[%clk 0:00:22]} 34. Kh3 {[%clk 0:00:58]}  Ra2 {[%clk 0:00:11]} 35. Nf3 {[%clk 0:00:49]}  Ng8 {[%clk 0:00:08]} 36. Ne5 {[%clk 0:00:44]}  Nf6 {[%clk 0:00:07]} 37. Ng6+ {[%clk 0:00:42]}  Kh7 {[%clk 0:00:06]} 38. Nf8+ {[%clk 0:00:42]}  Kh8 {[%clk 0:00:06]} 39. Qc4 {[%clk 0:00:43]}  Rf2 {[%clk 0:00:05]} 40. Ne6 {[%clk 0:00:42]}  h5 {[%clk 0:00:04]} 41. Nxc5 {[%clk 0:00:38]}  bxc5 {[%clk 0:00:04]} 42. Qxc5 {[%clk 0:00:37]}  Ra2 {[%clk 0:00:04]} 43. Qxa7 {[%clk 0:00:30]}  g5 {[%clk 0:00:04]} 44. Qf7 {[%clk 0:00:17]}  g4+ {[%clk 0:00:01]} 45. Kh4 {[%clk 0:00:18]}  Rxh2+ {[%clk 0:00:02]} 46. Kg5 {[%clk 0:00:18]} 1-0


[Site "https://www.chess.com"]

[Event "Titled Tuesday Blitz January 10 Early 2023"]
[White "Kravtsiv, Martyn"]
[Black "Vidit, Santosh Gujrathi"]
[WhiteFideId "14113147"]
[BlackFideId "5029465"]
[WhiteElo "2598"]
[BlackElo "2731"]
[Result "1-0"]
[Round "06"]
[TimeControl "180+2"]
[Date "2023.01.10"]
[WhiteClock "0:00:09"]
[BlackClock "0:00:05"]

1. e4 {[%clk 0:03:00]}  c5 {[%clk 0:02:57]} 2. Nf3 {[%clk 0:03:01]}  d6 {[%clk 0:02:55]} 3. Bb5+ {[%clk 0:03:00]}  Bd7 {[%clk 0:02:54]} 4. Bxd7+ {[%clk 0:02:59]}  Nxd7 {[%clk 0:02:55]} 5. O-O {[%clk 0:02:58]}  Ngf6 {[%clk 0:02:56]} 6. Qe2 {[%clk 0:02:57]}  Rc8 {[%clk 0:02:52]} 7. b3 {[%clk 0:02:51]}  e6 {[%clk 0:02:50]} 8. Bb2 {[%clk 0:02:48]}  Be7 {[%clk 0:02:51]} 9. d4 {[%clk 0:02:46]}  cxd4 {[%clk 0:02:50]} 10. Nxd4 {[%clk 0:02:47]}  O-O {[%clk 0:02:51]} 11. c4 {[%clk 0:02:47]}  a6 {[%clk 0:02:51]} 12. Nc3 {[%clk 0:02:46]}  Qa5 {[%clk 0:02:50]} 13. Rad1 {[%clk 0:02:33]}  Rfe8 {[%clk 0:02:39]} 14. Qd2 {[%clk 0:02:03]}  Qh5 {[%clk 0:02:27]} 15. h3 {[%clk 0:02:01]}  g5 {[%clk 0:02:15]} 16. f3 {[%clk 0:01:38]}  Ne5 {[%clk 0:02:12]} 17. Nce2 {[%clk 0:01:34]}  Kh8 {[%clk 0:02:07]} 18. Ng3 {[%clk 0:01:31]}  Qh4 {[%clk 0:02:02]} 19. Nde2 {[%clk 0:01:31]}  Rg8 {[%clk 0:01:55]} 20. Rc1 {[%clk 0:01:28]}  Nfd7 {[%clk 0:01:52]} 21. b4 {[%clk 0:01:22]}  Rgd8 {[%clk 0:01:43]} 22. Rfd1 {[%clk 0:01:05]}  Kg8 {[%clk 0:01:40]} 23. Nf1 {[%clk 0:00:55]}  Nxc4 {[%clk 0:01:22]} 24. Rxc4 {[%clk 0:00:53]}  Rxc4 {[%clk 0:01:22]} 25. Ne3 {[%clk 0:00:54]}  Rcc8 {[%clk 0:01:19]} 26. Ng4 {[%clk 0:00:54]}  Ne5 {[%clk 0:01:15]} 27. Qd4 {[%clk 0:00:48]}  f6 {[%clk 0:01:07]} 28. Ne3 {[%clk 0:00:37]}  Qh5 {[%clk 0:01:03]} 29. Qb6 {[%clk 0:00:35]}  Rd7 {[%clk 0:00:57]} 30. Nd4 {[%clk 0:00:33]}  Qf7 {[%clk 0:00:54]} 31. Qa5 {[%clk 0:00:30]}  h5 {[%clk 0:00:49]} 32. Qa4 {[%clk 0:00:29]}  Rdc7 {[%clk 0:00:48]} 33. Qb3 {[%clk 0:00:28]}  Nc4 {[%clk 0:00:48]} 34. Nf1 {[%clk 0:00:25]}  b5 {[%clk 0:00:46]} 35. Bc1 {[%clk 0:00:24]}  Bf8 {[%clk 0:00:43]} 36. a4 {[%clk 0:00:22]}  Rb7 {[%clk 0:00:38]} 37. axb5 {[%clk 0:00:21]}  axb5 {[%clk 0:00:39]} 38. Ne3 {[%clk 0:00:20]}  Nxe3 {[%clk 0:00:39]} 39. Qxe3 {[%clk 0:00:17]}  Rc4 {[%clk 0:00:37]} 40. Bd2 {[%clk 0:00:15]}  d5 {[%clk 0:00:37]} 41. exd5 {[%clk 0:00:15]}  exd5 {[%clk 0:00:37]} 42. Qd3 {[%clk 0:00:13]}  Rb8 {[%clk 0:00:27]} 43. Re1 {[%clk 0:00:12]}  Re8 {[%clk 0:00:24]} 44. Ra1 {[%clk 0:00:12]}  Qh7 {[%clk 0:00:22]} 45. Nf5 {[%clk 0:00:11]}  Re5 {[%clk 0:00:22]} 46. g4 {[%clk 0:00:11]}  hxg4 {[%clk 0:00:22]} 47. hxg4 {[%clk 0:00:10]}  Qb7 {[%clk 0:00:16]} 48. Kg2 {[%clk 0:00:09]}  d4 {[%clk 0:00:14]} 49. Rh1 {[%clk 0:00:07]}  Qf7 {[%clk 0:00:08]} 50. Ng3 {[%clk 0:00:07]}  Rc8 {[%clk 0:00:06]} 51. Ne4 {[%clk 0:00:07]}  Rd8 {[%clk 0:00:04]} 52. Nxf6+ {[%clk 0:00:07]}  Kg7 {[%clk 0:00:03]} 53. Rh7+ {[%clk 0:00:07]}  Kxf6 {[%clk 0:00:03]} 54. Rxf7+ {[%clk 0:00:08]}  Kxf7 {[%clk 0:00:04]} 55. f4 {[%clk 0:00:08]}  gxf4 {[%clk 0:00:04]} 56. Bxf4 {[%clk 0:00:09]}  Red5 {[%clk 0:00:05]} 57. g5 {[%clk 0:00:09]}  Bxb4 {[%clk 0:00:05]} 58. Qh7+ {[%clk 0:00:09]}  Ke6 {[%clk 0:00:05]} 59. g6 {[%clk 0:00:09]}  d3 {[%clk 0:00:05]} 60. Qf7# {[%clk 0:00:09]} 1-0


[Site "https://www.chess.com"]